[Event "4th Tata Steel India Rapid Open 2022"]
[Site "Kolkota"]
[Date "2022.11.29"]
[Round "1.1"]
[White "Nihal Sarin"]
[Black "Nakamura, Hikaru"]
[Result "1/2-1/2"]
[ECO "A28"]
[WhiteElo "2670"]
[BlackElo "2768"]
[Annotator "TA"]
[PlyCount "56"]
[EventDate "2022.11.29"]
[EventType "tourn"]
[EventCountry "IND"]
[SourceTitle "playchess.com"]
[Source "ChessBase"]
[SourceQuality "1"]
[TimeControl "900+10"]

{[%evp 10,56,4,0,0,5,75,81,82,77,97,98,83,14,5,8,8,10,11,0,0,0,15,0,31,21,30,0,0,0,0,0,0,0,0,0,-4,-14,0,0,0,0,0,0,0,0,0,0,0]} 1. c4 {[%emt 0:00:03]} Nf6 {[%emt 0:00:04]} 2. Nc3 {[%emt 0:00:01]} e5 {[%emt 0:00:10]} 3. Nf3 {[%emt 0:00:03]} Nc6 {[%emt 0:00:01]} 4. d3 {[%emt 0:00:01]} Bb4 {[%emt 0:02:37]} 5. Bd2 {[%emt 0:00:12]} O-O {[%emt 0:00:08]} 6. g3 {[%emt 0:00:02]} Nd4 {[%emt 0:00:11] A28: English Opening: Four Knights Variation.} 7. Bg2 {[%emt 0:00:40]} Re8 {[%emt 0:00:25] [#]} (7... Nxf3+ $11 8. Bxf3 c6) 8. Nxd4 $1 $16 {[%emt 0:01:13]} exd4 {[%emt 0:00:11] White is better.} 9. Nb5 {[%emt 0:00:01][%csl LRb4,LRd4]} Bxd2+ {[%emt 0:00:54]} 10. Qxd2 {[%emt 0:00:02]} d5 {[%emt 0:00:00] [#]} 11. cxd5 $146 {[%emt 0:01:43]} (11. c5 $16) ({Predecessor:} 11. c5 Bg4 12. Nxd4 Qe7 13. Rc1 Qe5 14. Nf3 Qe6 15. h3 Bxf3 16. Bxf3 Rad8 17. Kf1 {1-0 (34) Marek,S (2393)-Korbela,L (2345) Slovakia 2002}) 11... Bh3 $1 $11 {[%emt 0:00:34][%mdl 64]} 12. Bxh3 {[%emt 0:03:43]} Qxd5 {[%emt 0:00:03] [#]} 13. O-O {[%emt 0:00:02]} Qxb5 {[%emt 0:00:03]} 14. Bg2 {[%emt 0:00:03]} c6 {[%emt 0:00:37]} 15. a4 {[%emt 0:00:05]} Qf5 {[%emt 0:00:20]} 16. b4 {[%emt 0:00:59]} a6 {[%emt 0:00:47]} 17. Qb2 {[%emt 0:00:29]} Rad8 {[%emt 0:02:39]} 18. b5 {[%emt 0:01:06]} axb5 {[%emt 0:00:19] The position is equal.} 19. axb5 {[%emt 0:00:01]} Qxb5 {[%emt 0:00:07]} 20. Qxb5 {[%emt 0:00:03]} cxb5 {[%emt 0:00:01]} 21. Ra2 {[%emt 0:01:45]} Nd5 {[%emt 0:02:09]} 22. Bxd5 {[%emt 0:00:02]} Rxd5 {[%emt 0:00:01][%mdl 4096] Endgame KRR-KRR} 23. Rb1 {[%emt 0:00:02]} h5 {[%emt 0:00:50]} 24. Rab2 {[%emt 0:02:36]} h4 {[%emt 0:00:31]} 25. Kg2 {[%emt 0:00:59]} hxg3 {[%emt 0:00:37]} 26. hxg3 {[%emt 0:00:03]} Rde5 {[%emt 0:00:06]} 27. Rxb5 {[%emt 0:00:30]} Rxb5 {[%emt 0:00:08]} 28. Rxb5 {[%emt 0:00:02]} Rxe2 {[%emt 0:00:02] Weighted Error Value: White=0.09 (flawless) /Black=0.12 (very precise)} 1/2-1/2

[Event "4th Tata Steel India Rapid Open 2022"]
[Site "Kolkota"]
[Date "2022.11.29"]
[Round "1.2"]
[White "Abdusattorov, Nodirbek"]
[Black "Erigaisi Arjun"]
[Result "0-1"]
[ECO "C02"]
[WhiteElo "2713"]
[BlackElo "2718"]
[Annotator "TA"]
[PlyCount "76"]
[EventDate "2022.11.29"]
[EventType "tourn"]
[EventCountry "IND"]
[SourceTitle "playchess.com"]
[Source "ChessBase"]
[SourceQuality "1"]
[TimeControl "900+10"]

{[%evp 19,76,23,20,14,9,28,7,0,0,-54,-29,-33,0,0,32,41,53,0,0,-50,-41,-68,-94,-162,-149,-143,-17,-169,-172,-282,-281,-302,-281,-299,-292,-345,-340,-340,-333,-402,-391,-448,-264,-229,-233,-456,-430,-512,-519,-514,-523,-539,-509,-819,-666,-653,-635,-616,-607]} 1. e4 {[%emt 0:00:03][%cal Be2e4,Be4e5][%mdl 32]} e6 {[%emt 0:00:03]} 2. d4 {[%emt 0:00:02]} d5 {[%emt 0:00:02]} 3. e5 {[%emt 0:00:07]} c5 {[%emt 0:00:02]} 4. c3 {[%emt 0:00:03]} Nc6 {[%emt 0:00:03]} 5. Nf3 {[%emt 0:00:03]} Bd7 {[%emt 0:00:03]} 6. Be2 {[%emt 0:00:09]} f6 {[%emt 0:00:02]} 7. O-O {[%emt 0:00:06]} fxe5 {[%emt 0:00:04]} 8. Nxe5 {[%emt 0:00:03]} Nxe5 {[%emt 0:00:04]} 9. dxe5 {[%emt 0:00:02]} Qc7 {[%emt 0:00:03]} 10. c4 {[%emt 0:01:56] 10.Re1 deserves study.} Qxe5 {[%emt 0:00:09]} 11. cxd5 {[%emt 0:01:51] C02: French: Advance Variation.} O-O-O $1 {[%emt 0:00:05]} 12. Nc3 {[%emt 0:01:30]} Nf6 {[%emt 0:00:04][%cal Re6d5]} 13. Re1 {[%emt 0:05:04] The position is equal.} exd5 $40 {[%emt 0:00:28][%mdl 128] [#] Black is up to no good.} 14. Bb5 $146 {[%emt 0:00:44]} (14. Bc4 $11 Qf5 15. Bxd5) ({Predecessor:} 14. Bf3 Qf5 15. b4 c4 16. Bb2 Bxb4 17. Nxd5 Nxd5 18. Re5 Qd3 19. Rxd5 Qxd1+ 20. Raxd1 {0-1 (58) Hnatovsky,N (2350)-Bonatti,W (2379) IECG email 2006}) 14... Qc7 {[%emt 0:05:31]} (14... Qd6 $5 {[%cal Rd5d4]}) 15. Bg5 {[%emt 0:00:27]} Bd6 {[%emt 0:02:31]} (15... d4 {with more complications.} 16. Bxf6 gxf6 17. Nd5 Qd6) 16. g3 {[%emt 0:00:40]} (16. Rc1 {is more complex.} Bxh2+ 17. Kh1 Ng4 18. Bxd7+ Qxd7 19. Qa4) 16... Bxb5 {[%emt 0:01:11]} 17. Nxb5 {[%emt 0:00:04]} Qb6 {[%emt 0:00:02]} 18. Nxd6+ {[%emt 0:01:38]} ({Better is} 18. Qd3 $14) 18... Qxd6 $11 {[%emt 0:00:04]} 19. Rc1 {[%emt 0:00:15]} (19. Qa4 $11) 19... b6 $1 $15 {[%emt 0:00:53]} 20. b4 {[%emt 0:02:00]} c4 {[%emt 0:00:29]} 21. Qf3 {[%emt 0:00:02]} (21. b5 $17) 21... Rhe8 $19 {[%emt 0:01:10]} (21... Qxb4 22. Rxc4+ (22. Bxf6 gxf6 23. Qxf6 Rhf8 $17) 22... Qxc4 23. Rc1 $15) 22. Red1 {[%emt 0:00:29] And now Rxc4+ would win.} Qxb4 {[%emt 0:01:09]} ({Black should try} 22... Re4 $1 $17 {Threatens to win with ...h6.} 23. a4 Kb7) 23. Kg2 $2 {[%emt 0:00:52] [#] White does not recover from this.} (23. Bxf6 $11 {and White stays safe.} gxf6 24. Rxd5) 23... Re5 $1 {[%emt 0:01:39]} 24. Bf4 {[%emt 0:00:20]} (24. a3 $142 Qb5 25. Bxf6 gxf6 26. Rd4) 24... Re4 {[%emt 0:00:13]} 25. Bg5 {[%emt 0:00:22]} Qe7 {[%emt 0:00:12]} 26. a4 {[%emt 0:00:16]} h6 {[%emt 0:00:12]} 27. Be3 {[%emt 0:00:08]} Ng4 {[%emt 0:00:51][%cal Rg4e3]} 28. Bf4 {[%emt 0:00:05]} Ne5 {[%emt 0:00:09]} 29. Qh5 {[%emt 0:00:26][%cal Od1d5]} Kb7 {[%emt 0:00:42]} 30. a5 {[%emt 0:00:03]} Rxf4 {[%emt 0:00:12]} 31. gxf4 {[%emt 0:00:03] Hoping for Re1.} Nd3 {[%emt 0:00:02] Inhibits Re1. Chess con chili.} 32. a6+ $2 {[%emt 0:00:02]} (32. Rxd3 cxd3 33. axb6 axb6 34. Rd1) 32... Kxa6 {[%emt 0:00:12] Black is clearly winning.} 33. Ra1+ {[%emt 0:00:04]} Kb7 {[%emt 0:00:02]} 34. Qf3 {[%emt 0:00:29]} Qe4 {[%emt 0:00:04]} 35. Kg3 {[%emt 0:00:21]} Rf8 {[%emt 0:00:42] ...Qg6+ is the strong threat.} 36. Qg4 {[%emt 0:00:06] Prevents Qg6.} (36. Qxe4 $142 dxe4 37. Ra2) 36... Qxf4+ {[%emt 0:00:03]} (36... Rxf4 $2 37. Qd7+ Kb8 38. Qd8+ Kb7 39. Qd7+ Kb8 40. Qxa7+ Kc8 41. Qa8+ Kd7 42. Ra7+ Ke6 43. Qe8+ Kd6 44. Qd8+ Kc5 45. Qc7+ Kb5 46. Rb1+ (46. Qxg7 $2 Qf3#) 46... Nb4 47. Rxb4+ (47. Qxf4 $2 {too greedy.} Qxb1 48. Qf7 c3 $19) 47... Kxb4 48. Qxb6+ Kc3 49. Ra3+ Kc2 50. Ra2+ Kd3 51. Qb1+ Kd4 52. Qb2+ c3 53. Ra4+ Kd3 54. Qb5+ $18 (54. Rxe4 $2 {loses.} cxb2 55. Re3+ Kc4 $19) (54. Rxe4 $2 cxb2 55. Re3+ Kc4 $19)) 37. Qxf4 {[%emt 0:00:01]} Nxf4 {[%emt 0:00:03]} ({Not} 37... Rxf4 {[#]} 38. Rxd3 $1 Rf5 39. Rf3 Rg5+ 40. Kf4 $16) 38. Kf3 {[%emt 0:00:14]} d4 {[%emt 0:00:34] Weighted Error Value: White=0.47/Black=0.26 (precise)} 0-1

[Event "4th Tata Steel India Rapid Open 2022"]
[Site "Kolkota"]
[Date "2022.11.29"]
[Round "1.3"]
[White "Vidit, Santosh Gujrathi"]
[Black "Maghsoodloo, Parham"]
[Result "1/2-1/2"]
[ECO "B22"]
[WhiteElo "2724"]
[BlackElo "2720"]
[Annotator "TA"]
[PlyCount "68"]
[EventDate "2022.11.29"]
[EventType "tourn"]
[EventCountry "IND"]
[SourceTitle "playchess.com"]
[Source "ChessBase"]
[SourceQuality "1"]
[TimeControl "900+10"]

{[%evp 16,68,24,30,38,41,44,60,42,43,65,12,13,9,0,-9,-10,-7,-7,-6,-6,-6,-6,-6,-6,-6,-6,-7,-6,-6,0,0,12,12,18,0,0,0,0,0,0,0,0,-10,0,0,0,0,0,0,0,0,0,0,0]} 1. e4 {[%emt 0:00:07]} c5 {[%emt 0:01:08]} 2. c3 {[%emt 0:00:03][%cal Bc2c3,Bc3d4,Bd4e5][%mdl 32]} Nf6 {[%emt 0:00:26]} 3. e5 {[%emt 0:00:03]} Nd5 {[%emt 0:00:04]} 4. Nf3 {[%emt 0:00:04]} e6 {[%emt 0:00:17]} 5. d4 {[%emt 0:00:06]} cxd4 {[%emt 0:00:07]} 6. cxd4 {[%emt 0:00:02]} d6 {[%emt 0:00:03]} 7. Bc4 {[%emt 0:00:07][%cal Bf1c4,Bc4d3,Bd3e4][%mdl 32]} Nb6 {[%emt 0:00:18]} 8. Bd3 {[%emt 0:01:44]} Nc6 $1 {[%emt 0:00:40] The main line 8...Nc6 scores better than 8...dxe5.} 9. O-O {[%emt 0:00:18]} dxe5 {[%emt 0:01:47] B22: Sicilian: 2 c3.} 10. dxe5 {[%emt 0:00:22]} Nb4 {[%emt 0:00:04]} 11. Be4 {[%emt 0:04:44]} Qxd1 {[%emt 0:00:04] White is slightly better.} 12. Rxd1 {[%emt 0:00:01]} Bd7 {[%emt 0:00:02]} 13. Nc3 {[%emt 0:01:09] White is more active.} ({White should try} 13. Bxb7 $14 Nc2 14. Bxa8 Nxa8 {[#]} 15. Be3 $1 (15. Rxd7 $2 Kxd7 16. Ng5 Ke8 $19)) 13... Bc6 $1 $11 {[%emt 0:00:40] The position is equal.} 14. Bxc6+ {[%emt 0:00:38]} Nxc6 {[%emt 0:02:20]} 15. Nb5 {[%emt 0:01:17] [#] And now Nc7+ would win.} Nd5 {[%emt 0:00:06] Inhibits Nc7+.} 16. Rxd5 {[%emt 0:00:55]} exd5 {[%emt 0:00:02]} 17. Nc7+ {[%emt 0:00:01]} Kd7 {[%emt 0:00:02]} 18. Nxa8 {[%emt 0:00:03]} Be7 {[%emt 0:00:59]} 19. Bg5 {[%emt 0:01:57]} Rxa8 {[%emt 0:00:36]} 20. Rd1 {[%emt 0:00:11]} h6 {[%emt 0:00:55]} 21. Bxe7 {[%emt 0:00:26]} (21. Rxd5+ $2 {loses.} Ke6 22. Rb5 Bxg5 $19) 21... Nxe7 {[%emt 0:00:02][%mdl 4096] Endgame KRN-KRN} 22. Nd4 {[%emt 0:00:15] [#]} Rc8 $146 {[%emt 0:01:54]} ({Predecessor:} 22... Ng6 23. Nf5 Rg8 24. Re1 Rc8 25. Nxg7 Nxe5 26. h4 Nf3+ 27. gxf3 Rg8 28. Re5 Rxg7+ {1-0 (48) Mosadeghpour,M (2479)-Tahbaz,A (2297) Rasht 2015}) 23. f4 {[%emt 0:00:08]} a6 {[%emt 0:00:27]} 24. Kf2 {[%emt 0:00:11]} g6 {[%emt 0:00:53]} 25. g4 {[%emt 0:00:37]} Rc4 {[%emt 0:00:10]} 26. b3 {[%emt 0:00:09]} Rc3 {[%emt 0:00:02]} 27. Rd2 {[%emt 0:01:06]} Nc6 {[%emt 0:01:09]} 28. Nf3 {[%emt 0:01:16]} Ke6 {[%emt 0:00:29]} 29. h4 {[%emt 0:00:02]} b5 {[%emt 0:01:27]} 30. Ke2 {[%emt 0:00:23]} b4 {[%emt 0:00:21]} 31. Rd3 {[%emt 0:00:24]} Rc2+ {[%emt 0:01:01]} 32. Rd2 {[%emt 0:00:01]} Rc3 {[%emt 0:01:12]} 33. Rd3 {[%emt 0:00:02]} Rc2+ {[%emt 0:00:02]} 34. Rd2 {[%emt 0:00:01]} Rc3 {[%emt 0:00:02] Weighted Error Value: White=0.06 (flawless) /Black=0.02 (flawless)} 1/2-1/2

[Event "4th Tata Steel India Rapid Open 2022"]
[Site "Kolkota"]
[Date "2022.11.29"]
[Round "1.4"]
[White "Gukesh D"]
[Black "Mamedyarov, Shakhriyar"]
[Result "0-1"]
[ECO "E11"]
[WhiteElo "2725"]
[BlackElo "2741"]
[Annotator "TA"]
[PlyCount "90"]
[EventDate "2022.11.29"]
[EventType "tourn"]
[EventCountry "IND"]
[SourceTitle "playchess.com"]
[Source "ChessBase"]
[SourceQuality "1"]
[TimeControl "900+10"]

{[%evp 13,90,0,0,6,0,0,0,0,3,-5,5,0,0,0,4,17,18,-12,-23,-26,-41,-26,-25,-191,-180,-286,-193,-193,-200,-189,-176,-175,-224,-225,-218,-220,-209,-220,-185,-251,-217,-222,-224,-224,-216,-224,-224,-224,-224,-224,-211,-222,-222,-237,-222,-248,-255,-238,-227,-252,-251,-255,-247,-533,-543,-549,-547,-545,-528,-549,-550,-540,-482,-468,-459,-541,-519,-572,-568]} 1. d4 {[%emt 0:00:22]} Nf6 {[%emt 0:00:04]} 2. c4 {[%emt 0:00:02]} e6 {[%emt 0:00:02]} 3. Nf3 {[%emt 0:00:04]} Bb4+ {[%emt 0:00:05]} 4. Nbd2 {[%emt 0:00:06]} d5 {[%emt 0:00:05]} 5. e3 {[%emt 0:01:20]} O-O {[%emt 0:00:15]} 6. a3 {[%emt 0:00:13]} Be7 {[%emt 0:00:37]} 7. b4 {[%emt 0:00:03]} a5 {[%emt 0:01:17]} 8. b5 {[%emt 0:00:02] E11: Bogo-Indian.} c5 {[%emt 0:00:04]} 9. bxc6 {[%emt 0:00:55]} bxc6 {[%emt 0:00:12]} 10. Be2 {[%emt 0:00:46] The position is equal.} Nbd7 {[%emt 0:00:45]} 11. O-O {[%emt 0:00:07]} c5 {[%emt 0:00:05]} 12. Bb2 {[%emt 0:03:19]} Bb7 {[%emt 0:01:08][%cal Bc8b7,Bb7d5,Bd5b3][%mdl 32] [#]} 13. Qc2 $146 {[%emt 0:01:14]} ({Predecessor:} 13. Rc1 cxd4 14. Nxd4 Nc5 15. Nb5 Qd7 16. Nf3 dxc4 17. Bxc4 Qxd1 18. Rfxd1 Rfd8 19. Bd4 {½-½ (25) Tomaszewski,K (2185)-Zakrzewski,M (2233) Jastrzebia Gora 2016}) 13... dxc4 {[%emt 0:00:55]} 14. Nxc4 {[%emt 0:00:07]} Rc8 {[%emt 0:00:56]} 15. Rfd1 {[%emt 0:01:03]} Bd5 {[%emt 0:00:31]} 16. Qa4 {[%emt 0:03:21]} Nb6 {[%emt 0:00:47]} 17. Nxb6 {[%emt 0:00:10]} Qxb6 {[%emt 0:00:02]} 18. Bc3 {[%emt 0:01:21] [#] Loses the game.} (18. Qb5 $1 $11 {and White stays safe.} Qxb5 19. Bxb5) 18... Bb3 $1 $36 {[%emt 0:00:29][%mdl 2048] Black is really pushing.} 19. Bxa5 {[%emt 0:01:13]} (19. Qxa5 {was called for.} Qxa5 20. Bxa5 Bxd1 21. Rxd1) 19... Bxa4 {[%emt 0:04:07]} 20. Bxb6 {[%emt 0:00:01]} Bxd1 {[%emt 0:00:01]} 21. Bxd1 {[%emt 0:00:02]} Nd5 {[%emt 0:00:05] Inhibits a4.} 22. Bxc5 {[%emt 0:00:31]} Bxc5 {[%emt 0:00:02]} 23. dxc5 {[%emt 0:00:01]} Rxc5 {[%emt 0:00:01]} 24. Nd4 {[%emt 0:00:24]} Nc3 {[%emt 0:00:13]} 25. Bf3 {[%emt 0:01:20]} e5 {[%emt 0:00:43]} 26. Nf5 {[%emt 0:00:02]} (26. Ne2 {keeps fighting.}) 26... Rb8 {[%emt 0:01:01]} 27. g4 {[%emt 0:00:32]} Rb1+ {[%emt 0:00:47]} 28. Rxb1 {[%emt 0:00:02]} Nxb1 {[%emt 0:00:02][%mdl 4096] Endgame KRN-KBN} 29. Nd6 {[%emt 0:00:51]} Nxa3 {[%emt 0:00:09]} 30. h4 {[%emt 0:00:02]} Nc4 {[%emt 0:00:10]} 31. Ne4 {[%emt 0:00:02]} Ra5 {[%emt 0:00:14]} 32. Be2 {[%emt 0:00:06]} Ra4 {[%emt 0:00:19][%cal Oc4e3]} 33. Nc3 {[%emt 0:00:09]} Ra3 {[%emt 0:00:15]} 34. Nd5 {[%emt 0:00:13]} Nd6 {[%emt 0:00:12]} 35. Kg2 {[%emt 0:00:03]} Kf8 {[%emt 0:00:10]} 36. Bf3 {[%emt 0:00:17]} Rd3 {[%emt 0:00:11] [#] Hoping for ...e4.} 37. Nb4 {[%emt 0:00:04]} Rd2 {[%emt 0:00:06] Threatens to win with ...e4.} 38. Kg3 $2 {[%emt 0:00:08]} (38. Bc6) 38... h5 {[%emt 0:00:31] Black is clearly winning.} 39. gxh5 {[%emt 0:00:13]} Nf5+ {[%emt 0:00:02]} 40. Kg4 {[%emt 0:00:03]} Rxf2 {[%emt 0:00:10]} 41. Nd3 {[%emt 0:00:03]} Nxe3+ {[%emt 0:00:22]} 42. Kg3 {[%emt 0:00:02]} Rd2 {[%emt 0:00:16]} 43. Nxe5 {[%emt 0:00:02]} Rd4 {[%emt 0:00:04]} 44. Kf2 {[%emt 0:00:28]} Nf5 {[%emt 0:00:10]} 45. Bg4 {[%emt 0:00:07]} Re4 {[%emt 0:00:32] Weighted Error Value: White=0.31/Black=0.11 (very precise)} 0-1

[Event "4th Tata Steel India Rapid Open 2022"]
[Site "Kolkota"]
[Date "2022.11.29"]
[Round "1.5"]
[White "Sethuraman, S.P."]
[Black "So, Wesley"]
[Result "1/2-1/2"]
[ECO "C22"]
[WhiteElo "2643"]
[BlackElo "2760"]
[Annotator "TA"]
[PlyCount "39"]
[EventDate "2022.11.29"]
[EventType "tourn"]
[EventCountry "IND"]
[SourceTitle "playchess.com"]
[Source "ChessBase"]
[SourceQuality "1"]
[TimeControl "900+10"]

{[%evp 9,39,0,0,0,0,0,5,2,0,-13,-8,-4,0,0,0,0,0,0,0,-14,5,9,32,-4,-16,-22,0,0,0,-36,0,0]} 1. e4 {[%emt 0:00:05]} e5 {[%emt 0:00:01]} 2. d4 {[%emt 0:00:02]} exd4 {[%emt 0:00:02]} 3. Qxd4 {[%emt 0:00:02]} Nc6 {[%emt 0:00:08]} 4. Qc4 {[%emt 0:00:02]} Nf6 {[%emt 0:00:29]} 5. Nc3 {[%emt 0:00:02]} Bb4 {[%emt 0:00:04]} 6. Bd2 {[%emt 0:00:03] C22: Centre Game.} O-O {[%emt 0:00:07]} 7. O-O-O $1 {[%emt 0:00:03]} d6 {[%emt 0:00:33]} 8. f3 {[%emt 0:00:07]} Be6 {[%emt 0:00:17]} (8... a5 $5) 9. Qe2 {[%emt 0:00:06]} (9. Qb5 {feels hotter.} a6 10. Qg5 d5 11. exd5 Nxd5 12. Nxd5 Bxd5 13. Qxd8 Bxd2+ 14. Rxd2 Raxd8 15. a3) 9... a5 {[%emt 0:01:09]} 10. a3 {[%emt 0:01:06]} Bc5 {[%emt 0:00:34] [#]} 11. Be3 $146 {[%emt 0:00:56] [#] Threatens to win with Bxc5.} ({Predecessor:} 11. g4 b5 12. Nxb5 Ne5 13. Bc3 Nfd7 14. Nh3 Qc8 15. Nd4 Nb6 16. Nb3 Bc4 17. Qg2 {0-1 (72) Charochkina,D (2356)-Nasyrova,E (2171) Sochi 2020}) 11... Bc4 {[%emt 0:00:22]} 12. Qf2 {[%emt 0:00:33]} Bxe3+ {[%emt 0:02:32]} 13. Qxe3 {[%emt 0:00:03]} Bxf1 {[%emt 0:00:02]} 14. Rxf1 {[%emt 0:00:02]} d5 {[%emt 0:00:57] [#] Strongly threatening ...d4.} (14... Rb8 $5 {[%cal Rb7b5]}) 15. Rd1 {[%emt 0:00:58][%cal Rc3d5]} d4 {[%emt 0:00:03]} 16. Qf4 {[%emt 0:04:18]} (16. Qf2 $5) 16... Nh5 {[%emt 0:00:37]} 17. Qg4 {[%emt 0:01:33]} Nf6 {[%emt 0:00:21]} (17... g6 $5 {[%cal Rc6e5]} 18. f4 Qe8 $15) 18. Qf4 {[%emt 0:01:09]} Nh5 {[%emt 0:00:29]} 19. Qg4 {[%emt 0:00:02]} Nf6 {[%emt 0:00:20]} (19... g6 $5 {[%cal Rc6e5]} 20. f4 f5 21. exf5 Rxf5 $11) 20. Qf4 {[%emt 0:01:17] A balanced but interesting game.   Weighted Error Value: White=0.03 (flawless) /Black=0.08 (flawless)} 1/2-1/2

[Event "4th Tata Steel India Rapid Open 2022"]
[Site "Kolkota"]
[Date "2022.11.29"]
[Round "2.1"]
[White "Mamedyarov, Shakhriyar"]
[Black "Sethuraman, S.P."]
[Result "1-0"]
[ECO "D48"]
[WhiteElo "2741"]
[BlackElo "2643"]
[Annotator "TA"]
[PlyCount "63"]
[EventDate "2022.11.29"]
[EventType "tourn"]
[EventCountry "IND"]
[SourceTitle "playchess.com"]
[Source "ChessBase"]
[SourceQuality "1"]
[TimeControl "900+10"]

{[%evp 25,63,16,23,33,36,-77,-75,-79,-23,-15,-20,-12,-36,-29,0,0,94,75,130,126,135,147,141,138,205,200,188,186,518,154,283,114,1187,1172,1189,1193,1170,1135,1116,1095]} 1. d4 {[%emt 0:00:01]} d5 {[%emt 0:00:02]} 2. c4 {[%emt 0:00:02]} c6 {[%emt 0:00:01]} 3. Nc3 {[%emt 0:00:07]} Nf6 {[%emt 0:00:02]} 4. e3 {[%emt 0:00:06]} e6 {[%emt 0:00:02]} 5. Nf3 {[%emt 0:00:02]} Nbd7 {[%emt 0:00:02]} 6. Bd3 {[%emt 0:00:01]} dxc4 {[%emt 0:00:02]} 7. Bxc4 {[%emt 0:00:01]} b5 {[%emt 0:00:02]} 8. Bd3 {[%emt 0:00:04]} Bb7 {[%emt 0:00:03]} 9. O-O {[%emt 0:00:05]} a6 {[%emt 0:00:09]} 10. e4 {[%emt 0:00:04]} c5 {[%emt 0:00:01]} 11. d5 {[%emt 0:00:02]} c4 {[%emt 0:00:02]} 12. Bc2 {[%emt 0:00:03]} Qc7 {[%emt 0:00:02]} 13. dxe6 {[%emt 0:00:08]} fxe6 {[%emt 0:00:02]} 14. Ne2 {[%emt 0:00:08] D48: Semi-Slav: Meran System: 7...b5 8 Bd3 a6.} (14. Ng5 {is more complex.} Nc5 15. e5 Qxe5 16. Re1) 14... Nc5 {[%emt 0:00:01][%cal Oa8d8]} 15. Ned4 {[%emt 0:00:17]} (15. Bf4 $14 {keeps the upper hand.} Qb6 16. Be3) 15... e5 $1 $17 {[%emt 0:03:42]} (15... Bxe4 16. Bxe4 Nfxe4 17. b4 $14) (15... Nfxe4 16. b4 $14) 16. Nf5 {[%emt 0:00:13] Black is better.} g6 {[%emt 0:01:44] Against b3} (16... Ncxe4 $17 17. Be3 g6 18. Bxe4 Nxe4) 17. Ng3 $11 {[%emt 0:00:59] [#]} (17. Bg5 Nfxe4 18. Ng3 Nxg5 19. Nxg5 Be7 $17) 17... Ne6 $146 {[%emt 0:00:54]} (17... Bxe4 $2 18. Nxe4 Nfxe4 19. Bxe4 $18) ({Predecessor:} 17... Bg7 18. b3 Nfxe4 19. Nxe4 Nxe4 20. bxc4 O-O 21. Bb2 bxc4 22. Qe2 Nd6 23. Nxe5 Rae8 24. Qe3 Bxg2 25. Rfe1 Ba8 26. Rab1 Bxe5 27. Bxe5 Qc6 {½-½ (27) Mihajlov,S (2356)-Sandipan,C (2572) Barcelona 2016}) 18. b3 {[%emt 0:00:46]} c3 {[%emt 0:01:48]} 19. a3 {[%emt 0:00:01]} b4 {[%emt 0:00:44]} 20. Bd3 {[%emt 0:01:09] Threatens to win with Bc4.} Be7 {[%emt 0:02:19]} (20... O-O-O $11 {keeps the balance.}) 21. axb4 {[%emt 0:01:04] Strongly threatening Bc4.} Bxb4 {[%emt 0:00:27]} (21... Rd8 $142) 22. Bc4 $16 {[%emt 0:00:32]} Nf4 {[%emt 0:01:08]} 23. Bxf4 {[%emt 0:02:22]} exf4 {[%emt 0:00:02] [#]} 24. Ne2 {[%emt 0:00:02] aiming for Ned4.} Rd8 {[%emt 0:00:57] [#]} (24... Nxe4 $2 25. Qd4 Rf8 26. Bd5 (26. Bxa6 Rxa6 27. Rxa6 Bc5 $16)) (24... Qd6 $16 {was worth a try.}) 25. Qc1 $1 $18 {[%emt 0:00:30]} Nxe4 {[%emt 0:01:22]} 26. Nxf4 {[%emt 0:00:32] Hoping for Ne6.} Rd2 $2 {[%emt 0:00:29]} (26... Rf8 {is a better chance.} 27. Ne6 (27. Bxa6 Qxf4 28. Bxb7 Qxc1 $15) 27... Qe7) 27. Ne6 $2 {[%emt 0:01:19]} ({Not} 27. Bxa6 O-O 28. Bc4+ (28. Nxd2 Nxd2 29. Ne6 Qc6 $11) 28... Kh8 $11) (27. Nxd2 $18 {and the rest is easy.} Nxd2 28. Re1+ Kd7 29. Nd3) 27... Qc6 {[%emt 0:00:06]} (27... Qd6 $16) 28. Bxa6 {[%emt 0:01:08] Dancing on a razor blade.} Ke7 $2 {[%emt 0:01:53][%mdl 8192] This move loses the game for Black.} 29. Ned4 {[%emt 0:00:39] Pair of Knights! White is clearly winning.} Qd5 {[%emt 0:00:55]} 30. Bxb7 {[%emt 0:00:04]} Qxb7 {[%emt 0:00:16] [#]} 31. Ra7 $3 {[%emt 0:01:18][%mdl 512]} Qxa7 {[%emt 0:00:17]} 32. Nc6+ {[%emt 0:00:01] Weighted Error Value: White=0.48/Black=0.64} 1-0